[Event "Early-Titled-Tuesday-Blitz-February-13-2024"]
[Site "Chess.com"]
[Date "2024.02.13"]
[Round "8"]
[White "Zavgorodniy_Sergiy"]
[Black "kingofthenil"]
[Result "1-0"]
[WhiteElo "2662"]
[BlackElo "2709"]
[TimeControl "180+1"]
[EndTime "9:32:20 PST"]
[Termination "Zavgorodniy_Sergiy won by resignation"]

1. d4 {[%clk 0:03:00.9]} 1... d5 {[%clk 0:02:59.1]} 2. c4 {[%clk 0:03:01.2]}
2... c6 {[%clk 0:02:51.9]} 3. e3 {[%clk 0:03:01.3]} 3... Nf6 {[%clk 0:02:52]} 4.
Bd3 {[%clk 0:03:01]} 4... dxc4 {[%clk 0:02:45.2]} 5. Bxc4 {[%clk 0:03:00.9]}
5... e5 {[%clk 0:02:45.4]} 6. Nc3 {[%clk 0:02:58.9]} 6... exd4 {[%clk
0:02:42.7]} 7. exd4 {[%clk 0:02:59.8]} 7... Bd6 {[%clk 0:02:42.4]} 8. Nf3 {[%clk
0:03:00.2]} 8... O-O {[%clk 0:02:42.8]} 9. O-O {[%clk 0:03:00.6]} 9... h6 {[%clk
0:02:43.6]} 10. h3 {[%clk 0:03:00.2]} 10... Nbd7 {[%clk 0:02:43.4]} 11. Re1
{[%clk 0:02:59.9]} 11... Qc7 {[%clk 0:02:36.4]} 12. Bd3 {[%clk 0:02:53.6]} 12...
Rd8 {[%clk 0:02:26.7]} 13. Qe2 {[%clk 0:02:48.4]} 13... Nf8 {[%clk 0:02:25.9]}
14. Ne5 {[%clk 0:02:47.7]} 14... Bxe5 {[%clk 0:01:15.1]} 15. dxe5 {[%clk
0:02:47.1]} 15... Nd5 {[%clk 0:01:14.7]} 16. Nxd5 {[%clk 0:02:44.1]} 16... Rxd5
{[%clk 0:01:15]} 17. Bc4 {[%clk 0:02:37.4]} 17... Rd8 {[%clk 0:01:02.9]} 18. Qh5
{[%clk 0:02:30.5]} 18... Be6 {[%clk 0:01:02.9]} 19. Bxe6 {[%clk 0:02:20.6]}
19... Nxe6 {[%clk 0:01:03.5]} 20. f4 {[%clk 0:02:09.3]} 20... Nd4 {[%clk
0:00:31]} 21. f5 {[%clk 0:02:01.4]} 21... Nc2 {[%clk 0:00:24.6]} 22. Bxh6 {[%clk
0:01:51.6]} 22... Nxe1 {[%clk 0:00:17.8]} 23. Rxe1 {[%clk 0:01:15.5]} 23... gxh6
{[%clk 0:00:05.3]} 24. Re4 {[%clk 0:01:07]} 24... Rd4 {[%clk 0:00:03]} 25. Rxd4
{[%clk 0:01:03.1]} 25... Qxe5 {[%clk 0:00:03.3]} 26. Rg4+ {[%clk 0:01:01.8]}
26... Kf8 {[%clk 0:00:03.8]} 27. Qxh6+ {[%clk 0:01:00.5]} 27... Ke7 {[%clk
0:00:04.4]} 28. f6+ {[%clk 0:00:58.3]} 28... Kd6 {[%clk 0:00:04]} 29. Qd2+
{[%clk 0:00:56]} 29... Kc7 {[%clk 0:00:03.4]} 30. Rd4 {[%clk 0:00:52.7]} 30...
Qxf6 {[%clk 0:00:03.7]} 31. Rd7+ {[%clk 0:00:51.9]} 31... Kc8 {[%clk 0:00:03.5]}
32. Rd6 {[%clk 0:00:32.9]} 32... Qe7 {[%clk 0:00:03.2]} 33. Qf4 {[%clk
0:00:27.6]} 33... a5 {[%clk 0:00:01.9]} 34. a4 {[%clk 0:00:25.7]} 34... Ra6
{[%clk 0:00:02]} 35. Rf6 {[%clk 0:00:22.2]} 35... Qc7 {[%clk 0:00:01.3]} 36.
Qxc7+ {[%clk 0:00:21]} 36... Kxc7 {[%clk 0:00:02]} 37. Rxf7+ {[%clk 0:00:21.1]}
37... Kc8 {[%clk 0:00:01.6]} 38. h4 {[%clk 0:00:21.1]} 38... Rb6 {[%clk
0:00:01.8]} 39. h5 {[%clk 0:00:20.7]} 39... Rb4 {[%clk 0:00:01]} 40. h6 {[%clk
0:00:20.7]} 40... Rh4 {[%clk 0:00:01.6]} 41. h7 {[%clk 0:00:21.2]} 41... Kb8
{[%clk 0:00:02.5]} 42. Rf8+ {[%clk 0:00:21.4]} 42... Ka7 {[%clk 0:00:03.4]} 43.
h8=Q {[%clk 0:00:21.9]} 43... Rxh8 {[%clk 0:00:04.2]} 44. Rxh8 {[%clk
0:00:22.7]} 1-0

[Event "Early-Titled-Tuesday-Blitz-February-13-2024"]
[Site "Chess.com"]
[Date "2024.02.13"]
[Round "8"]
[White "LiadCuba"]
[Black "ActorXu"]
[Result "1-0"]
[WhiteElo "2510"]
[BlackElo "2805"]
[TimeControl "180+1"]
[EndTime "9:32:21 PST"]
[Termination "LiadCuba won by checkmate"]

1. d4 {[%clk 0:03:00.9]} 1... Nf6 {[%clk 0:02:59.7]} 2. c4 {[%clk 0:03:00.5]}
2... e6 {[%clk 0:03:00]} 3. Nc3 {[%clk 0:03:00.7]} 3... Bb4 {[%clk 0:02:59.8]}
4. f3 {[%clk 0:03:00.9]} 4... Nc6 {[%clk 0:02:52.7]} 5. e4 {[%clk 0:02:58.5]}
5... e5 {[%clk 0:02:51.6]} 6. d5 {[%clk 0:02:57]} 6... Nd4 {[%clk 0:02:40.4]} 7.
Ne2 {[%clk 0:02:56.7]} 7... c5 {[%clk 0:02:40]} 8. dxc6 {[%clk 0:02:49.6]} 8...
dxc6 {[%clk 0:02:38]} 9. Be3 {[%clk 0:02:47]} 9... Bc5 {[%clk 0:02:14]} 10. Qd2
{[%clk 0:02:34.6]} 10... Be6 {[%clk 0:02:13.3]} 11. O-O-O {[%clk 0:02:34]} 11...
Qa5 {[%clk 0:01:40.8]} 12. Nxd4 {[%clk 0:02:33.1]} 12... exd4 {[%clk 0:01:39]}
13. Bxd4 {[%clk 0:02:34]} 13... Rd8 {[%clk 0:01:36.4]} 14. Qe3 {[%clk
0:02:29.3]} 14... Rxd4 {[%clk 0:01:28.2]} 15. Rxd4 {[%clk 0:02:30.2]} 15... O-O
{[%clk 0:01:04.5]} 16. Qd2 {[%clk 0:02:17.5]} 16... Bxd4 {[%clk 0:01:02]} 17.
Qxd4 {[%clk 0:02:18.4]} 17... Rd8 {[%clk 0:01:02]} 18. Qe3 {[%clk 0:02:12.9]}
18... Qb4 {[%clk 0:00:44.6]} 19. Qxa7 {[%clk 0:01:51.2]} 19... Bxc4 {[%clk
0:00:42.3]} 20. Bxc4 {[%clk 0:01:25.4]} 20... Qxc4 {[%clk 0:00:42.2]} 21. Qxb7
{[%clk 0:01:19]} 21... h5 {[%clk 0:00:39.4]} 22. Qb3 {[%clk 0:01:16.1]} 22...
Qd4 {[%clk 0:00:34.9]} 23. Rd1 {[%clk 0:01:12.7]} 23... Qe3+ {[%clk 0:00:34.3]}
24. Kb1 {[%clk 0:01:12.9]} 24... Rxd1+ {[%clk 0:00:25]} 25. Qxd1 {[%clk
0:01:13.8]} 25... Qf2 {[%clk 0:00:24.5]} 26. g4 {[%clk 0:00:51.5]} 26... h4
{[%clk 0:00:13.4]} 27. g5 {[%clk 0:00:46.9]} 27... Nh5 {[%clk 0:00:12]} 28. a4
{[%clk 0:00:43]} 28... Qxh2 {[%clk 0:00:11.7]} 29. a5 {[%clk 0:00:36.1]} 29...
h3 {[%clk 0:00:11.9]} 30. a6 {[%clk 0:00:35.2]} 30... Qb8 {[%clk 0:00:12.1]} 31.
e5 {[%clk 0:00:25.5]} 31... h2 {[%clk 0:00:11.4]} 32. Qh1 {[%clk 0:00:19.8]}
32... g6 {[%clk 0:00:03.4]} 33. Qxh2 {[%clk 0:00:18.4]} 33... Qb6 {[%clk
0:00:03.3]} 34. Qe2 {[%clk 0:00:16.6]} 34... Nf4 {[%clk 0:00:03.2]} 35. Qc4
{[%clk 0:00:15.8]} 35... Ne6 {[%clk 0:00:03.2]} 36. Ne4 {[%clk 0:00:15.7]} 36...
c5 {[%clk 0:00:02.9]} 37. Nf6+ {[%clk 0:00:14.8]} 37... Kg7 {[%clk 0:00:03.4]}
38. Ne8+ {[%clk 0:00:15]} 38... Kf8 {[%clk 0:00:03.3]} 39. Nd6 {[%clk
0:00:15.1]} 39... Nd4 {[%clk 0:00:02.1]} 40. Qxf7# {[%clk 0:00:15.1]} 1-0

[Event "Early-Titled-Tuesday-Blitz-February-13-2024"]
[Site "Chess.com"]
[Date "2024.02.13"]
[Round "8"]
[White "Zq1"]
[Black "Karttunen"]
[Result "1/2-1/2"]
[WhiteElo "2497"]
[BlackElo "2628"]
[TimeControl "180+1"]
[EndTime "9:32:21 PST"]
[Termination "Game drawn by repetition"]

1. d4 {[%clk 0:03:00.9]} 1... Nf6 {[%clk 0:02:52]} 2. c4 {[%clk 0:03:00.7]} 2...
e6 {[%clk 0:02:36.8]} 3. Nf3 {[%clk 0:02:59.7]} 3... d5 {[%clk 0:02:23.4]} 4.
Nc3 {[%clk 0:02:57]} 4... Bb4 {[%clk 0:02:23.5]} 5. e3 {[%clk 0:02:51.4]} 5...
O-O {[%clk 0:02:21.4]} 6. Bd3 {[%clk 0:02:50.4]} 6... c5 {[%clk 0:02:19.2]} 7.
O-O {[%clk 0:02:44.3]} 7... Nc6 {[%clk 0:02:13.8]} 8. cxd5 {[%clk 0:02:42.6]}
8... exd5 {[%clk 0:02:13.5]} 9. a3 {[%clk 0:02:39.8]} 9... Bxc3 {[%clk
0:02:13.1]} 10. bxc3 {[%clk 0:02:39.1]} 10... c4 {[%clk 0:02:13.4]} 11. Be2
{[%clk 0:02:29.4]} 11... Ne4 {[%clk 0:02:11.3]} 12. Bb2 {[%clk 0:02:27.5]} 12...
Bf5 {[%clk 0:02:05.6]} 13. Ne1 {[%clk 0:02:16.4]} 13... Re8 {[%clk 0:01:55.7]}
14. g4 {[%clk 0:02:11.7]} 14... Bg6 {[%clk 0:01:53.2]} 15. f3 {[%clk 0:02:09]}
15... Nd6 {[%clk 0:01:43]} 16. Ng2 {[%clk 0:02:07.6]} 16... f5 {[%clk
0:01:40.9]} 17. h3 {[%clk 0:02:01.8]} 17... fxg4 {[%clk 0:01:22.7]} 18. hxg4
{[%clk 0:02:01.5]} 18... Qe7 {[%clk 0:01:16.2]} 19. Bc1 {[%clk 0:01:56.9]} 19...
Na5 {[%clk 0:01:02.7]} 20. a4 {[%clk 0:01:55.3]} 20... Nb3 {[%clk 0:01:02.4]}
21. Ra2 {[%clk 0:01:54.5]} 21... Nxc1 {[%clk 0:01:02.6]} 22. Qxc1 {[%clk
0:01:53]} 22... Bd3 {[%clk 0:01:02.1]} 23. Rd2 {[%clk 0:01:45.1]} 23... Bxe2
{[%clk 0:00:59.5]} 24. Rxe2 {[%clk 0:01:45.2]} 24... Qg5 {[%clk 0:00:56.6]} 25.
Qe1 {[%clk 0:01:31.6]} 25... h5 {[%clk 0:00:53.3]} 26. gxh5 {[%clk 0:01:18.9]}
26... Qxh5 {[%clk 0:00:45]} 27. Nf4 {[%clk 0:01:11]} 27... Qf7 {[%clk
0:00:42.2]} 28. Qg3 {[%clk 0:00:49.1]} 28... Nf5 {[%clk 0:00:42.3]} 29. Qg5
{[%clk 0:00:43.2]} 29... Rxe3 {[%clk 0:00:32.6]} 30. Rxe3 {[%clk 0:00:40.2]}
30... Nxe3 {[%clk 0:00:32.7]} 31. Re1 {[%clk 0:00:40]} 31... Nf5 {[%clk
0:00:15.4]} 32. Re5 {[%clk 0:00:35.3]} 32... Nh6 {[%clk 0:00:09.7]} 33. Nxd5
{[%clk 0:00:28.6]} 33... Qxf3 {[%clk 0:00:07.4]} 34. Ne7+ {[%clk 0:00:16.5]}
34... Kh8 {[%clk 0:00:06.7]} 35. Re6 {[%clk 0:00:10.8]} 35... Qd1+ {[%clk
0:00:05.3]} 36. Kh2 {[%clk 0:00:06]} 36... Qc2+ {[%clk 0:00:04.5]} 37. Kg1
{[%clk 0:00:04.8]} 37... Qb1+ {[%clk 0:00:03.3]} 38. Kh2 {[%clk 0:00:04.8]}
38... Qc2+ {[%clk 0:00:03.7]} 39. Kg1 {[%clk 0:00:05.1]} 39... Qb1+ {[%clk
0:00:03.6]} 40. Kh2 {[%clk 0:00:05.4]} 40... Qc2+ {[%clk 0:00:03.7]} 1/2-1/2

[Event "Early-Titled-Tuesday-Blitz-February-13-2024"]
[Site "Chess.com"]
[Date "2024.02.13"]
[Round "8"]
[White "jk13"]
[Black "iwanyu"]
[Result "1-0"]
[WhiteElo "2691"]
[BlackElo "2858"]
[TimeControl "180+1"]
[EndTime "9:32:22 PST"]
[Termination "jk13 won by checkmate"]

1. e4 {[%clk 0:03:00.9]} 1... c5 {[%clk 0:02:48.9]} 2. c3 {[%clk 0:03:01.2]}
2... Nf6 {[%clk 0:02:46.2]} 3. e5 {[%clk 0:03:01.5]} 3... Nd5 {[%clk 0:02:46.8]}
4. Bc4 {[%clk 0:03:01.9]} 4... e6 {[%clk 0:02:44.2]} 5. Nf3 {[%clk 0:03:01.7]}
5... Be7 {[%clk 0:02:44]} 6. O-O {[%clk 0:03:01.4]} 6... O-O {[%clk 0:02:43.5]}
7. d4 {[%clk 0:03:02.1]} 7... cxd4 {[%clk 0:02:43.8]} 8. cxd4 {[%clk 0:03:03]}
8... d6 {[%clk 0:02:44.4]} 9. Qe2 {[%clk 0:03:02.2]} 9... a6 {[%clk 0:02:38.2]}
10. a3 {[%clk 0:02:50]} 10... b5 {[%clk 0:02:37]} 11. Bd3 {[%clk 0:02:49]} 11...
Bb7 {[%clk 0:02:32.5]} 12. Rd1 {[%clk 0:02:37.6]} 12... dxe5 {[%clk 0:02:27.2]}
13. dxe5 {[%clk 0:02:37.4]} 13... Nd7 {[%clk 0:02:27.8]} 14. Qe4 {[%clk
0:02:31.5]} 14... g6 {[%clk 0:02:26.8]} 15. Bh6 {[%clk 0:02:29]} 15... Re8
{[%clk 0:02:25.9]} 16. Qg4 {[%clk 0:02:24.5]} 16... Qc7 {[%clk 0:02:06.6]} 17.
Re1 {[%clk 0:02:25.1]} 17... Nc5 {[%clk 0:01:51.6]} 18. Bc2 {[%clk 0:02:14.5]}
18... Na4 {[%clk 0:01:32.8]} 19. Be4 {[%clk 0:01:59.5]} 19... Ndb6 {[%clk
0:01:00.9]} 20. Nbd2 {[%clk 0:01:56.8]} 20... Nxb2 {[%clk 0:00:57.3]} 21. h4
{[%clk 0:01:50.5]} 21... Bxe4 {[%clk 0:00:41.3]} 22. Nxe4 {[%clk 0:01:50.2]}
22... Nd3 {[%clk 0:00:41]} 23. Nf6+ {[%clk 0:00:36.4]} 23... Bxf6 {[%clk
0:00:37.7]} 24. exf6 {[%clk 0:00:37.3]} 24... Nxe1 {[%clk 0:00:33.1]} 25. Rxe1
{[%clk 0:00:38.2]} 25... Rad8 {[%clk 0:00:31.6]} 26. Ne5 {[%clk 0:00:33.8]}
26... Qc3 {[%clk 0:00:26.8]} 27. Re3 {[%clk 0:00:32.3]} 27... Qa1+ {[%clk
0:00:25.5]} 28. Kh2 {[%clk 0:00:32.3]} 28... Rd1 {[%clk 0:00:23.3]} 29. Qf3
{[%clk 0:00:15.9]} 29... Nd5 {[%clk 0:00:21.5]} 30. Re4 {[%clk 0:00:14.6]} 30...
Rh1+ {[%clk 0:00:20.7]} 31. Kg3 {[%clk 0:00:14.6]} 31... Qg1 {[%clk 0:00:19.2]}
32. Ng4 {[%clk 0:00:12.6]} 32... Rc8 {[%clk 0:00:17.6]} 33. Re5 {[%clk
0:00:10.6]} 33... Qa1 {[%clk 0:00:12.5]} 34. Rxd5 {[%clk 0:00:08.8]} 34... exd5
{[%clk 0:00:12.4]} 35. Qxd5 {[%clk 0:00:09.5]} 35... Qc3+ {[%clk 0:00:11.3]} 36.
Be3 {[%clk 0:00:09.1]} 36... Qc7+ {[%clk 0:00:11.1]} 37. Bf4 {[%clk 0:00:09.1]}
37... Qc3+ {[%clk 0:00:10.7]} 38. f3 {[%clk 0:00:09.4]} 38... Qc4 {[%clk
0:00:08.5]} 39. Qd7 {[%clk 0:00:08.6]} 39... Qe6 {[%clk 0:00:07.1]} 40. Nh6+
{[%clk 0:00:08.9]} 40... Kf8 {[%clk 0:00:05.7]} 41. Bd6+ {[%clk 0:00:08.8]}
41... Qxd6+ {[%clk 0:00:05.9]} 42. Qxd6+ {[%clk 0:00:09.7]} 42... Ke8 {[%clk
0:00:06.3]} 43. Qe7# {[%clk 0:00:09.8]} 1-0

[Event "Early-Titled-Tuesday-Blitz-February-13-2024"]
[Site "Chess.com"]
[Date "2024.02.13"]
[Round "8"]
[White "FARIZA2018"]
[Black "Aslanov_Umid"]
[Result "1-0"]
[WhiteElo "2537"]
[BlackElo "2671"]
[TimeControl "180+1"]
[EndTime "9:32:24 PST"]
[Termination "FARIZA2018 won by checkmate"]

1. e4 {[%clk 0:03:00.9]} 1... c5 {[%clk 0:03:00.5]} 2. Nf3 {[%clk 0:03:00.9]}
2... d6 {[%clk 0:03:01]} 3. d4 {[%clk 0:03:01.4]} 3... cxd4 {[%clk 0:03:01.9]}
4. Nxd4 {[%clk 0:03:01.8]} 4... Nf6 {[%clk 0:03:02.5]} 5. Nc3 {[%clk 0:03:02.5]}
5... a6 {[%clk 0:03:03.2]} 6. f4 {[%clk 0:02:59.7]} 6... e5 {[%clk 0:03:02.5]}
7. Nf3 {[%clk 0:02:59.7]} 7... Nbd7 {[%clk 0:03:03.1]} 8. Bd3 {[%clk 0:02:56.7]}
8... b5 {[%clk 0:02:54.4]} 9. a3 {[%clk 0:02:46.3]} 9... Be7 {[%clk 0:02:53.9]}
10. O-O {[%clk 0:02:46.1]} 10... O-O {[%clk 0:02:52.5]} 11. Kh1 {[%clk
0:02:40.6]} 11... Bb7 {[%clk 0:02:52.4]} 12. Qe2 {[%clk 0:02:29.9]} 12... Rc8
{[%clk 0:02:48.6]} 13. Bd2 {[%clk 0:02:11.6]} 13... Re8 {[%clk 0:02:48.8]} 14.
Rae1 {[%clk 0:01:55.7]} 14... Bf8 {[%clk 0:02:24.3]} 15. Qf2 {[%clk 0:01:55.4]}
15... Nc5 {[%clk 0:02:19.7]} 16. Nh4 {[%clk 0:01:22.4]} 16... Qd7 {[%clk
0:01:22.7]} 17. Nf5 {[%clk 0:00:59.3]} 17... d5 {[%clk 0:01:06.2]} 18. fxe5
{[%clk 0:00:44.4]} 18... Nfxe4 {[%clk 0:01:03.3]} 19. Bxe4 {[%clk 0:00:35]}
19... Nxe4 {[%clk 0:01:03.2]} 20. Nxe4 {[%clk 0:00:33.7]} 20... dxe4 {[%clk
0:01:04.1]} 21. Bc3 {[%clk 0:00:33.2]} 21... Bd5 {[%clk 0:00:52.5]} 22. Rd1
{[%clk 0:00:25.5]} 22... Qb7 {[%clk 0:00:47.8]} 23. Nd6 {[%clk 0:00:19.6]} 23...
Bxd6 {[%clk 0:00:45.5]} 24. exd6 {[%clk 0:00:19.8]} 24... e3 {[%clk 0:00:46]}
25. Qe2 {[%clk 0:00:09]} 25... g6 {[%clk 0:00:28.5]} 26. Rfe1 {[%clk 0:00:06.5]}
26... Rcd8 {[%clk 0:00:20.6]} 27. Qd3 {[%clk 0:00:02.2]} 27... Rxd6 {[%clk
0:00:17.2]} 28. Kg1 {[%clk 0:00:02.6]} 28... Ree6 {[%clk 0:00:12.7]} 29. Rxe3
{[%clk 0:00:02.5]} 29... Qb6 {[%clk 0:00:12.6]} 30. Bd4 {[%clk 0:00:02.4]} 30...
Qc6 {[%clk 0:00:12.7]} 31. Rxe6 {[%clk 0:00:02.7]} 31... Rxe6 {[%clk 0:00:13.6]}
32. c3 {[%clk 0:00:02.8]} 32... Bxg2 {[%clk 0:00:13.6]} 33. Bf2 {[%clk
0:00:02.6]} 33... Be4 {[%clk 0:00:12.9]} 34. Qd8+ {[%clk 0:00:02.8]} 34... Kg7
{[%clk 0:00:13.5]} 35. Bd4+ {[%clk 0:00:03.5]} 35... Kh6 {[%clk 0:00:12.9]} 36.
Qh4# {[%clk 0:00:03]} 1-0

[Event "Early-Titled-Tuesday-Blitz-February-13-2024"]
[Site "Chess.com"]
[Date "2024.02.13"]
[Round "8"]
[White "vi_pranav"]
[Black "alexrustemov"]
[Result "0-1"]
[WhiteElo "3035"]
[BlackElo "2842"]
[TimeControl "180+1"]
[EndTime "9:32:25 PST"]
[Termination "alexrustemov won by resignation"]

1. e4 {[%clk 0:03:00.9]} 1... e6 {[%clk 0:03:00.1]} 2. d4 {[%clk 0:02:58.9]}
2... d5 {[%clk 0:03:00.6]} 3. Nc3 {[%clk 0:02:59.8]} 3... dxe4 {[%clk 0:03:01]}
4. Nxe4 {[%clk 0:02:59.9]} 4... Bd7 {[%clk 0:03:01.5]} 5. Nf3 {[%clk 0:02:59.9]}
5... Bc6 {[%clk 0:03:02]} 6. Bd3 {[%clk 0:02:59.5]} 6... Nd7 {[%clk 0:03:02.4]}
7. O-O {[%clk 0:02:59.2]} 7... Ngf6 {[%clk 0:03:03]} 8. Ng3 {[%clk 0:02:59.8]}
8... Be7 {[%clk 0:03:03.2]} 9. Re1 {[%clk 0:02:59.5]} 9... O-O {[%clk
0:03:03.1]} 10. c3 {[%clk 0:02:59.1]} 10... b6 {[%clk 0:03:03.2]} 11. Qe2 {[%clk
0:02:57.8]} 11... Bb7 {[%clk 0:03:02.9]} 12. Bf4 {[%clk 0:02:48.4]} 12... c5
{[%clk 0:03:03.1]} 13. Rad1 {[%clk 0:02:46.8]} 13... Bxf3 {[%clk 0:03:02.6]} 14.
Qxf3 {[%clk 0:02:46.2]} 14... cxd4 {[%clk 0:03:03.2]} 15. Be4 {[%clk 0:01:58]}
15... Nxe4 {[%clk 0:02:58.5]} 16. Nxe4 {[%clk 0:01:54.3]} 16... e5 {[%clk
0:02:54.9]} 17. Bc1 {[%clk 0:01:46.1]} 17... f5 {[%clk 0:02:49.3]} 18. Ng3
{[%clk 0:01:41.2]} 18... e4 {[%clk 0:02:48.1]} 19. Qf4 {[%clk 0:01:39.4]} 19...
g5 {[%clk 0:02:35.3]} 20. Qd2 {[%clk 0:01:36.3]} 20... d3 {[%clk 0:02:26.4]} 21.
f3 {[%clk 0:01:16.9]} 21... Bc5+ {[%clk 0:02:19.1]} 22. Kh1 {[%clk 0:01:16.5]}
22... Ne5 {[%clk 0:02:19.7]} 23. b4 {[%clk 0:01:12]} 23... Nc4 {[%clk
0:02:12.8]} 24. Qxg5+ {[%clk 0:01:11.5]} 24... Qxg5 {[%clk 0:02:10.3]} 25. Bxg5
{[%clk 0:01:12.4]} 25... Bf2 {[%clk 0:02:01.6]} 26. Rf1 {[%clk 0:01:04.3]} 26...
Be3 {[%clk 0:01:32.7]} 27. Be7 {[%clk 0:00:35.2]} 27... Rf7 {[%clk 0:01:31.2]}
28. Bh4 {[%clk 0:00:34.9]} 28... Re8 {[%clk 0:01:23.6]} 29. Nh5 {[%clk
0:00:34.4]} 29... Re6 {[%clk 0:01:18.3]} 30. g4 {[%clk 0:00:18.2]} 30... d2
{[%clk 0:00:56.6]} 31. Ng3 {[%clk 0:00:08.7]} 31... Bf4 {[%clk 0:00:42.7]} 32.
gxf5 {[%clk 0:00:07.3]} 32... Rh6 {[%clk 0:00:32]} 33. Nxe4 {[%clk 0:00:02]}
33... Rxh4 {[%clk 0:00:30.6]} 34. Rf2 {[%clk 0:00:01.6]} 34... Rxf5 {[%clk
0:00:27.2]} 35. Rg2+ {[%clk 0:00:01.8]} 35... Kf7 {[%clk 0:00:26.4]} 36. Re2
{[%clk 0:00:02.1]} 36... Rfh5 {[%clk 0:00:25.7]} 37. Kg1 {[%clk 0:00:02.2]}
37... Rxh2 {[%clk 0:00:25.4]} 38. Rxh2 {[%clk 0:00:02.2]} 38... Rxh2 {[%clk
0:00:25.2]} 39. a4 {[%clk 0:00:02.3]} 39... Re2 {[%clk 0:00:17.8]} 40. Kf1
{[%clk 0:00:02.2]} 40... Rxe4 {[%clk 0:00:17.9]} 41. Kf2 {[%clk 0:00:01.2]} 0-1

[Event "Early-Titled-Tuesday-Blitz-February-13-2024"]
[Site "Chess.com"]
[Date "2024.02.13"]
[Round "8"]
[White "ejam94"]
[Black "GaiozNigalidze"]
[Result "0-1"]
[WhiteElo "2511"]
[BlackElo "2684"]
[TimeControl "180+1"]
[EndTime "9:32:25 PST"]
[Termination "GaiozNigalidze won on time"]

1. e4 {[%clk 0:03:00.9]} 1... c5 {[%clk 0:02:59.7]} 2. Nf3 {[%clk 0:02:59]} 2...
d6 {[%clk 0:03:00.6]} 3. d4 {[%clk 0:02:58.9]} 3... cxd4 {[%clk 0:03:01.5]} 4.
Nxd4 {[%clk 0:02:59.6]} 4... Nf6 {[%clk 0:03:02.1]} 5. Nc3 {[%clk 0:02:59.7]}
5... a6 {[%clk 0:03:02.9]} 6. b3 {[%clk 0:02:58.9]} 6... g6 {[%clk 0:02:59.6]}
7. Bb2 {[%clk 0:02:58.8]} 7... Bg7 {[%clk 0:03:00.1]} 8. Qd2 {[%clk 0:02:58.7]}
8... O-O {[%clk 0:02:59.4]} 9. O-O-O {[%clk 0:02:59]} 9... b5 {[%clk 0:02:56.7]}
10. f3 {[%clk 0:02:58.8]} 10... Bd7 {[%clk 0:02:52.6]} 11. g4 {[%clk 0:02:58.9]}
11... b4 {[%clk 0:02:52.1]} 12. Nce2 {[%clk 0:02:54.3]} 12... e5 {[%clk
0:02:39.9]} 13. Nf5 {[%clk 0:02:27.4]} 13... gxf5 {[%clk 0:02:39.7]} 14. gxf5
{[%clk 0:02:27.5]} 14... Bb5 {[%clk 0:02:27.1]} 15. Rg1 {[%clk 0:01:37.2]} 15...
Kh8 {[%clk 0:01:21.5]} 16. Bxe5 {[%clk 0:01:35.8]} 16... Nbd7 {[%clk 0:01:11.7]}
17. Bb2 {[%clk 0:01:03.6]} 17... Ne5 {[%clk 0:01:05.4]} 18. Rxg7 {[%clk
0:00:48.2]} 18... Kxg7 {[%clk 0:01:02.7]} 19. Qg5+ {[%clk 0:00:48.9]} 19... Kh8
{[%clk 0:01:02.4]} 20. f4 {[%clk 0:00:49]} 20... Nxe4 {[%clk 0:00:35.8]} 21.
Qxd8 {[%clk 0:00:39.4]} 21... Raxd8 {[%clk 0:00:36.7]} 22. fxe5 {[%clk
0:00:39.5]} 22... dxe5 {[%clk 0:00:37.2]} 23. Bxe5+ {[%clk 0:00:38.8]} 23... f6
{[%clk 0:00:37.5]} 24. Bd4 {[%clk 0:00:32.1]} 24... Bxe2 {[%clk 0:00:24.6]} 25.
Bxe2 {[%clk 0:00:31.7]} 25... Kg7 {[%clk 0:00:19.5]} 26. Rg1+ {[%clk 0:00:28.4]}
26... Kh8 {[%clk 0:00:19.1]} 27. Rd1 {[%clk 0:00:19]} 27... Rd6 {[%clk 0:00:18]}
28. Bf3 {[%clk 0:00:07.9]} 28... Nc3 {[%clk 0:00:16.9]} 29. Rd3 {[%clk
0:00:06.2]} 29... Rfd8 {[%clk 0:00:15.3]} 30. Bxf6+ {[%clk 0:00:06.2]} 30...
Rxf6 {[%clk 0:00:15.2]} 31. Rxd8+ {[%clk 0:00:06.4]} 31... Kg7 {[%clk 0:00:16]}
32. Rd7+ {[%clk 0:00:04.5]} 32... Kh6 {[%clk 0:00:15.6]} 33. Bg4 {[%clk
0:00:05.1]} 33... Kg5 {[%clk 0:00:15.4]} 34. h3 {[%clk 0:00:05.1]} 34... h5
{[%clk 0:00:15.6]} 35. Rg7+ {[%clk 0:00:04.2]} 35... Kh4 {[%clk 0:00:15.6]} 36.
Rh7 {[%clk 0:00:01.7]} 36... Kg3 {[%clk 0:00:15.6]} 37. Rxh5 {[%clk 0:00:02.6]}
37... Rd6 {[%clk 0:00:15.7]} 38. Kb2 {[%clk 0:00:03.5]} 38... Rd2 {[%clk
0:00:15.3]} 39. f6 {[%clk 0:00:03.5]} 39... Rf2 {[%clk 0:00:14.8]} 40. Rf5
{[%clk 0:00:03.5]} 40... Rh2 {[%clk 0:00:14.6]} 41. f7 {[%clk 0:00:03.8]} 41...
Rh1 {[%clk 0:00:15]} 0-1